[Event "Early-Titled-Tuesday-Blitz-November-28-2023"]
[Site "Chess.com"]
[Date "2023.11.28"]
[Round "4"]
[White "Leo_C"]
[Black "Orishuas"]
[Result "1-0"]
[WhiteElo "2602"]
[BlackElo "2361"]
[TimeControl "180+1"]
[EndTime "8:41:05 PST"]
[Termination "Leo_C won on time"]

1. e4 {[%clk 0:02:58.7]} 1... c5 {[%clk 0:02:58.9]} 2. Nf3 {[%clk 0:02:58.6]}
2... d6 {[%clk 0:02:58.6]} 3. d4 {[%clk 0:02:58.7]} 3... cxd4 {[%clk 0:02:59.2]}
4. Qxd4 {[%clk 0:02:59.6]} 4... Nc6 {[%clk 0:02:55.1]} 5. Bb5 {[%clk 0:02:58.1]}
5... Bd7 {[%clk 0:02:53]} 6. Qd3 {[%clk 0:02:58.2]} 6... Nf6 {[%clk 0:02:52.9]}
7. c4 {[%clk 0:02:54.8]} 7... g6 {[%clk 0:02:52.7]} 8. Nc3 {[%clk 0:02:54.5]}
8... Bg7 {[%clk 0:02:52.3]} 9. O-O {[%clk 0:02:54.4]} 9... O-O {[%clk
0:02:52.3]} 10. h3 {[%clk 0:02:54.2]} 10... Ne5 {[%clk 0:02:49.9]} 11. Nxe5
{[%clk 0:02:51.5]} 11... dxe5 {[%clk 0:02:49.9]} 12. Bxd7 {[%clk 0:02:40.9]}
12... Qxd7 {[%clk 0:02:49]} 13. Qxd7 {[%clk 0:02:40.3]} 13... Nxd7 {[%clk
0:02:49]} 14. Be3 {[%clk 0:02:33.3]} 14... e6 {[%clk 0:02:45.3]} 15. Rfd1 {[%clk
0:02:31.9]} 15... Nf6 {[%clk 0:02:43.3]} 16. f3 {[%clk 0:02:25.8]} 16... Rfc8
{[%clk 0:02:40.8]} 17. b3 {[%clk 0:02:24.8]} 17... Bf8 {[%clk 0:02:39.8]} 18.
Nb5 {[%clk 0:02:22]} 18... a6 {[%clk 0:02:32.1]} 19. Nc3 {[%clk 0:02:15.2]}
19... Bc5 {[%clk 0:02:08.6]} 20. Bxc5 {[%clk 0:01:46.2]} 20... Rxc5 {[%clk
0:02:07.7]} 21. a4 {[%clk 0:01:37.8]} 21... Kf8 {[%clk 0:02:02.7]} 22. Kf2
{[%clk 0:01:26.7]} 22... Ke7 {[%clk 0:02:01.9]} 23. g4 {[%clk 0:01:24.9]} 23...
g5 {[%clk 0:01:53.5]} 24. Rd3 {[%clk 0:01:22.4]} 24... h5 {[%clk 0:01:49.5]} 25.
Nd1 {[%clk 0:00:54.3]} 25... hxg4 {[%clk 0:01:45.5]} 26. hxg4 {[%clk 0:00:55.2]}
26... Rh8 {[%clk 0:01:44.1]} 27. Kg2 {[%clk 0:00:55.7]} 27... Rcc8 {[%clk
0:01:37.2]} 28. Nf2 {[%clk 0:00:53.9]} 28... Rhd8 {[%clk 0:01:28.5]} 29. Rad1
{[%clk 0:00:49.1]} 29... Rxd3 {[%clk 0:01:27.3]} 30. Nxd3 {[%clk 0:00:50]} 30...
Rd8 {[%clk 0:01:24]} 31. Kf2 {[%clk 0:00:49.8]} 31... Rd4 {[%clk 0:01:20.5]} 32.
Ke2 {[%clk 0:00:48.7]} 32... Nd7 {[%clk 0:01:20.8]} 33. Rh1 {[%clk 0:00:43.7]}
33... f6 {[%clk 0:00:58.3]} 34. Rh8 {[%clk 0:00:41.1]} 34... Kd6 {[%clk
0:00:55.2]} 35. Rc8 {[%clk 0:00:31.6]} 35... Nb6 {[%clk 0:00:39.9]} 36. Rf8
{[%clk 0:00:27.1]} 36... Nd7 {[%clk 0:00:38.6]} 37. Re8 {[%clk 0:00:24.8]} 37...
b6 {[%clk 0:00:29.1]} 38. Ra8 {[%clk 0:00:19.1]} 38... Nc5 {[%clk 0:00:25.7]}
39. Rd8+ {[%clk 0:00:17.7]} 39... Kc7 {[%clk 0:00:22.1]} 40. Nxc5 {[%clk
0:00:12.6]} 40... bxc5 {[%clk 0:00:21]} 41. Rf8 {[%clk 0:00:08.6]} 41... Rd6
{[%clk 0:00:17.9]} 42. Rxf6 {[%clk 0:00:06.9]} 42... Rb6 {[%clk 0:00:18]} 43.
Rg6 {[%clk 0:00:06.5]} 43... Kd6 {[%clk 0:00:17.6]} 44. Rxg5 {[%clk 0:00:06.3]}
44... Rxb3 {[%clk 0:00:18.1]} 45. Rg7 {[%clk 0:00:06]} 45... Rb4 {[%clk
0:00:17.9]} 46. g5 {[%clk 0:00:06.2]} 46... Rxc4 {[%clk 0:00:18]} 47. g6 {[%clk
0:00:06.8]} 47... Rc2+ {[%clk 0:00:18.1]} 48. Kf1 {[%clk 0:00:07.3]} 48... Rc3
{[%clk 0:00:17]} 49. Kf2 {[%clk 0:00:06.9]} 49... Rc2+ {[%clk 0:00:17.3]} 50.
Kg3 {[%clk 0:00:07.5]} 50... Rb2 {[%clk 0:00:15.3]} 51. Rf7 {[%clk 0:00:06.8]}
51... Rb8 {[%clk 0:00:15]} 52. g7 {[%clk 0:00:04.7]} 52... Rg8 {[%clk
0:00:14.6]} 53. Ra7 {[%clk 0:00:04.7]} 53... c4 {[%clk 0:00:13.6]} 54. Rxa6+
{[%clk 0:00:05.1]} 54... Kc5 {[%clk 0:00:13.8]} 55. Ra7 {[%clk 0:00:04.4]} 55...
Kc6 {[%clk 0:00:10.4]} 56. Ra6+ {[%clk 0:00:03.5]} 56... Kc5 {[%clk 0:00:10.1]}
57. Ra7 {[%clk 0:00:02.8]} 57... c3 {[%clk 0:00:09.3]} 58. Rc7+ {[%clk 0:00:03]}
58... Kd4 {[%clk 0:00:09.3]} 59. Kg4 {[%clk 0:00:03.7]} 59... c2 {[%clk
0:00:08.4]} 60. Rxc2 {[%clk 0:00:03.3]} 60... Rxg7+ {[%clk 0:00:07.9]} 61. Kh3
{[%clk 0:00:03.5]} 61... Ke3 {[%clk 0:00:06.7]} 62. Rc3+ {[%clk 0:00:04]} 62...
Kf4 {[%clk 0:00:06.9]} 63. Ra3 {[%clk 0:00:04.7]} 63... Ra7 {[%clk 0:00:03.6]}
64. a5 {[%clk 0:00:05.3]} 64... Ra6 {[%clk 0:00:04]} 65. Kh4 {[%clk 0:00:05]}
65... Ra8 {[%clk 0:00:02.4]} 66. Kh5 {[%clk 0:00:04.9]} 66... Ra6 {[%clk
0:00:02]} 67. Kg6 {[%clk 0:00:05.3]} 67... Kg3 {[%clk 0:00:01.3]} 68. Kf6 {[%clk
0:00:05.5]} 68... Kf2 {[%clk 0:00:01.9]} 69. Kxe5 {[%clk 0:00:05.8]} 69... Ke2
{[%clk 0:00:02.3]} 70. f4 {[%clk 0:00:06.3]} 70... Kd2 {[%clk 0:00:02.3]} 71. f5
{[%clk 0:00:06.8]} 71... Kc2 {[%clk 0:00:03.2]} 72. f6 {[%clk 0:00:07]} 72...
Kb2 {[%clk 0:00:04.1]} 73. Ra4 {[%clk 0:00:07.1]} 73... Ra8 {[%clk 0:00:04.3]}
74. a6 {[%clk 0:00:07.2]} 74... Kb3 {[%clk 0:00:03.6]} 75. Ra5 {[%clk
0:00:07.3]} 75... Kb4 {[%clk 0:00:04]} 76. Ra1 {[%clk 0:00:08]} 76... Kb3 {[%clk
0:00:04.3]} 77. a7 {[%clk 0:00:08.2]} 77... Kb2 {[%clk 0:00:05.2]} 78. Ra6
{[%clk 0:00:08.5]} 78... Kb3 {[%clk 0:00:05.4]} 79. f7 {[%clk 0:00:09.1]} 79...
Kb4 {[%clk 0:00:05.9]} 80. Kxe6 {[%clk 0:00:09.6]} 80... Kb5 {[%clk 0:00:04]}
81. Ra1 {[%clk 0:00:10.1]} 81... Kb4 {[%clk 0:00:03.9]} 82. Kf6 {[%clk
0:00:10.7]} 1-0

[Event "Early-Titled-Tuesday-Blitz-November-28-2023"]
[Site "Chess.com"]
[Date "2023.11.28"]
[Round "4"]
[White "vasblesk"]
[Black "BogdanDeac"]
[Result "1/2-1/2"]
[WhiteElo "2822"]
[BlackElo "2990"]
[TimeControl "180+1"]
[EndTime "8:41:07 PST"]
[Termination "Game drawn - insufficient material"]

1. d4 {[%clk 0:03:00.9]} 1... Nf6 {[%clk 0:02:59.4]} 2. Nf3 {[%clk 0:03:00.1]}
2... d5 {[%clk 0:02:58.4]} 3. c4 {[%clk 0:02:58.9]} 3... e6 {[%clk 0:02:58.5]}
4. g3 {[%clk 0:02:58.7]} 4... dxc4 {[%clk 0:02:58.8]} 5. Bg2 {[%clk 0:02:59.3]}
5... a6 {[%clk 0:02:58.9]} 6. O-O {[%clk 0:02:56]} 6... Nc6 {[%clk 0:02:59.1]}
7. Qd2 {[%clk 0:02:27.8]} 7... Bb4 {[%clk 0:02:47.6]} 8. Qc2 {[%clk 0:02:27.2]}
8... b5 {[%clk 0:02:47.7]} 9. Rd1 {[%clk 0:02:14]} 9... Rb8 {[%clk 0:02:23.3]}
10. b3 {[%clk 0:02:05.1]} 10... Be7 {[%clk 0:01:47.3]} 11. bxc4 {[%clk
0:02:00.5]} 11... Nb4 {[%clk 0:01:47.5]} 12. Qc3 {[%clk 0:01:51.5]} 12... bxc4
{[%clk 0:01:47.3]} 13. Ne5 {[%clk 0:01:50.1]} 13... Bb7 {[%clk 0:01:41.3]} 14.
Bxb7 {[%clk 0:01:36.7]} 14... Rxb7 {[%clk 0:01:42.2]} 15. a3 {[%clk 0:01:32.3]}
15... Nbd5 {[%clk 0:01:30.3]} 16. Qxc4 {[%clk 0:01:31.5]} 16... Qd6 {[%clk
0:01:28.6]} 17. a4 {[%clk 0:01:19.9]} 17... Rb4 {[%clk 0:01:01.4]} 18. Qc2
{[%clk 0:01:17.6]} 18... c5 {[%clk 0:00:28.6]} 19. Qxc5 {[%clk 0:00:40.3]} 19...
Qxc5 {[%clk 0:00:23.8]} 20. dxc5 {[%clk 0:00:41.2]} 20... Bxc5 {[%clk
0:00:18.5]} 21. Nd3 {[%clk 0:00:36.8]} 21... Rc4 {[%clk 0:00:15.4]} 22. Nd2
{[%clk 0:00:33.8]} 22... Rc2 {[%clk 0:00:08.4]} 23. Ne1 {[%clk 0:00:21.5]} 23...
Nc3 {[%clk 0:00:08.6]} 24. Nxc2 {[%clk 0:00:21.6]} 24... Nxd1 {[%clk 0:00:08.4]}
25. Ba3 {[%clk 0:00:16.7]} 25... Bxa3 {[%clk 0:00:07.6]} 26. Rxa3 {[%clk
0:00:17]} 26... O-O {[%clk 0:00:07.2]} 27. Nc4 {[%clk 0:00:11.4]} 27... Rc8
{[%clk 0:00:06.8]} 28. Rd3 {[%clk 0:00:11.4]} 28... h6 {[%clk 0:00:05.1]} 29.
N2a3 {[%clk 0:00:11.6]} 29... Nxf2 {[%clk 0:00:03.7]} 30. Kxf2 {[%clk
0:00:11.9]} 30... Ne4+ {[%clk 0:00:04.6]} 31. Kg2 {[%clk 0:00:12.2]} 31... Nc5
{[%clk 0:00:05.2]} 32. Rd6 {[%clk 0:00:12.9]} 32... Nxa4 {[%clk 0:00:05.4]} 33.
Rxa6 {[%clk 0:00:13.6]} 33... Nc3 {[%clk 0:00:06.1]} 34. Ra7 {[%clk 0:00:13.8]}
34... Nxe2 {[%clk 0:00:05]} 35. Nd6 {[%clk 0:00:11.3]} 35... Rf8 {[%clk
0:00:05.1]} 36. Nab5 {[%clk 0:00:11.2]} 36... Nc1 {[%clk 0:00:04.5]} 37. Re7
{[%clk 0:00:10.6]} 37... Nd3 {[%clk 0:00:03.8]} 38. Nc7 {[%clk 0:00:10.7]} 38...
Ne5 {[%clk 0:00:03.5]} 39. Ncb5 {[%clk 0:00:07.6]} 39... h5 {[%clk 0:00:03.5]}
40. Rc7 {[%clk 0:00:07.9]} 40... g6 {[%clk 0:00:03.6]} 41. Rc5 {[%clk
0:00:08.5]} 41... Nd7 {[%clk 0:00:03.5]} 42. Rc7 {[%clk 0:00:08.7]} 42... Ne5
{[%clk 0:00:04.2]} 43. Nd4 {[%clk 0:00:09.2]} 43... Rd8 {[%clk 0:00:03.6]} 44.
Rc8 {[%clk 0:00:09.7]} 44... Rxc8 {[%clk 0:00:03.7]} 45. Nxc8 {[%clk 0:00:10.6]}
45... Kg7 {[%clk 0:00:03.9]} 46. Ne7 {[%clk 0:00:10.9]} 46... Kf6 {[%clk
0:00:03.8]} 47. Nec6 {[%clk 0:00:11.8]} 47... Nd7 {[%clk 0:00:03.8]} 48. Nf3
{[%clk 0:00:11.6]} 48... e5 {[%clk 0:00:03.8]} 49. Nd2 {[%clk 0:00:11.9]} 49...
Ke6 {[%clk 0:00:03.7]} 50. Nb4 {[%clk 0:00:12.1]} 50... f5 {[%clk 0:00:03.4]}
51. Nd3 {[%clk 0:00:12.8]} 51... g5 {[%clk 0:00:03.3]} 52. h4 {[%clk 0:00:11.6]}
52... gxh4 {[%clk 0:00:03.6]} 53. gxh4 {[%clk 0:00:12.5]} 53... Nf8 {[%clk
0:00:04.1]} 54. Nf3 {[%clk 0:00:12.4]} 54... Ng6 {[%clk 0:00:03.4]} 55. Ng5+
{[%clk 0:00:10.3]} 55... Kd5 {[%clk 0:00:03.6]} 56. Kg3 {[%clk 0:00:10.9]} 56...
f4+ {[%clk 0:00:03.7]} 57. Kh3 {[%clk 0:00:10.7]} 57... e4 {[%clk 0:00:04]} 58.
Ne1 {[%clk 0:00:10.4]} 58... Kd4 {[%clk 0:00:03.7]} 59. Nc2+ {[%clk 0:00:09.2]}
59... Kd3 {[%clk 0:00:03.6]} 60. Ne1+ {[%clk 0:00:09.9]} 60... Kd2 {[%clk
0:00:03.4]} 61. Ng2 {[%clk 0:00:08.2]} 61... Kd3 {[%clk 0:00:02.8]} 62. Ne1+
{[%clk 0:00:07.9]} 62... Ke2 {[%clk 0:00:02.8]} 63. Nc2 {[%clk 0:00:08.3]} 63...
e3 {[%clk 0:00:02.5]} 64. Nd4+ {[%clk 0:00:08.1]} 64... Kd3 {[%clk 0:00:01.9]}
65. Ndf3 {[%clk 0:00:08.7]} 65... e2 {[%clk 0:00:02]} 66. Ne6 {[%clk 0:00:08.2]}
66... Ke3 {[%clk 0:00:01.8]} 67. Neg5 {[%clk 0:00:06]} 67... Kf2 {[%clk
0:00:01.7]} 68. Kh2 {[%clk 0:00:04.5]} 68... e1=Q {[%clk 0:00:02.1]} 69. Nxe1
{[%clk 0:00:05.1]} 69... Kxe1 {[%clk 0:00:03]} 70. Nf3+ {[%clk 0:00:05.7]} 70...
Kf2 {[%clk 0:00:03.2]} 71. Nd4 {[%clk 0:00:05]} 71... Ke3 {[%clk 0:00:03.3]} 72.
Nf5+ {[%clk 0:00:04.7]} 72... Ke2 {[%clk 0:00:03.7]} 73. Ng7 {[%clk 0:00:04.6]}
73... f3 {[%clk 0:00:03.1]} 74. Nxh5 {[%clk 0:00:05.3]} 74... f2 {[%clk
0:00:02.7]} 75. Ng3+ {[%clk 0:00:06.2]} 75... Ke1 {[%clk 0:00:02.9]} 76. h5
{[%clk 0:00:06.8]} 76... Ne5 {[%clk 0:00:03]} 77. Kg2 {[%clk 0:00:07.2]} 77...
Nf7 {[%clk 0:00:02.8]} 78. Kf3 {[%clk 0:00:07.1]} 78... Nh6 {[%clk 0:00:03.3]}
79. Kf4 {[%clk 0:00:07.1]} 79... f1=Q+ {[%clk 0:00:02.7]} 80. Nxf1 {[%clk
0:00:07.1]} 80... Kxf1 {[%clk 0:00:03.6]} 81. Kg5 {[%clk 0:00:08]} 81... Ng8
{[%clk 0:00:03.9]} 82. Kg6 {[%clk 0:00:08.8]} 82... Kg2 {[%clk 0:00:04.5]} 83.
Kg7 {[%clk 0:00:09.3]} 83... Ne7 {[%clk 0:00:04.9]} 84. Kf7 {[%clk 0:00:10.2]}
84... Nf5 {[%clk 0:00:04.9]} 85. Kf6 {[%clk 0:00:10.9]} 85... Nh6 {[%clk
0:00:05.2]} 86. Kg7 {[%clk 0:00:11.3]} 86... Nf5+ {[%clk 0:00:05.4]} 87. Kg6
{[%clk 0:00:11.6]} 87... Ne7+ {[%clk 0:00:05.6]} 88. Kg5 {[%clk 0:00:12.1]}
88... Ng8 {[%clk 0:00:05.8]} 89. h6 {[%clk 0:00:13]} 89... Nxh6 {[%clk 0:00:06]}
1/2-1/2